bitfinex-derivatives/quotes_BTCF0:USTF0_20250528
["timestamp","ask_amount","ask_price","bid_price","bid_amount"]
[1748475075454,1.38181437,108050.0,108040.0,0.22727158]
[1748475076351,1.38181437,108050.0,108040.0,0.22728352]
[1748475076750,1.2583115,108050.0,108040.0,0.22728352]
[1748475076954,1.38181437,108050.0,108040.0,0.22728352]
[1748475077151,1.38181437,108050.0,108040.0,0.04221472]
[1748475077452,1.38181437,108050.0,108040.0,0.22728342]
[1748475077648,1.38181437,108050.0,108040.0,0.04221472]
[1748475078747,0.6918315,108050.0,108040.0,0.22728342]
[1748475079053,1.38197437,108050.0,108040.0,0.22728342]
[1748475079257,0.81545437,108050.0,108040.0,0.22728342]
[1748475079460,0.5069,108050.0,108040.0,0.26438342]
[1748475079649,0.81545447,108050.0,108040.0,0.30048342]
[1748475079850,0.81533447,108050.0,108040.0,0.30048342]
[1748475080051,0.6919516,108050.0,108040.0,0.30048342]
[1748475080353,0.81545437,108050.0,108040.0,0.30048342]
[1748475080749,0.45465437,108050.0,108040.0,0.30048342]
[1748475081051,1.02421437,108050.0,108040.0,0.30048342]
[1748475081252,0.71566,108050.0,108040.0,0.30048342]
[1748475081451,0.9007115,108050.0,108040.0,0.35673491]
[1748475081853,1.2615115,108050.0,108040.0,0.30048342]
[1748475082264,1.02421437,108050.0,108040.0,0.30048342]
[1748475082456,1.02421437,108050.0,108040.0,0.35673491]
[1748475082647,0.9007115,108050.0,108040.0,0.35673491]
[1748475083450,1.02421437,108050.0,108040.0,0.35673491]
[1748475084161,0.25982,108050.0,108040.0,0.35673491]
[1748475084358,0.2597,108050.0,108040.0,0.39323491]
[1748475084564,0.25982,108050.0,108040.0,0.39331851]
[1748475085059,0.1461,108050.0,108040.0,0.39331851]
[1748475085258,0.1069,108050.0,108040.0,0.91968881]
[1748475085451,0.10678,108050.0,108040.0,0.79618594]
[1748475085646,0.10678,108050.0,108040.0,2.29618594]
[1748475085856,0.10678,108050.0,108040.0,2.29895594]
[1748475086253,0.1069,108050.0,108040.0,2.29895594]
[1748475086854,0.1069,108050.0,108040.0,2.36874913]
[1748475087159,0.1446,108050.0,108040.0,2.492252]
[1748475087354,0.1446,108050.0,108040.0,2.53506797]
[1748475087555,0.1446,108050.0,108040.0,2.492252]
[1748475087960,0.11352,108050.0,108040.0,2.36874913]
[1748475088162,0.11352,108050.0,108040.0,2.29895594]
[1748475088364,0.11352,108050.0,108040.0,2.75439594]
[1748475088665,0.1446,108050.0,108040.0,2.75439594]
[1748475089671,0.1446,108050.0,108040.0,2.77439594]
[1748475090171,0.1446,108050.0,108040.0,2.31895594]
[1748475090359,0.1446,108050.0,108040.0,2.77443594]
[1748475090759,0.1446,108050.0,108040.0,2.77439594]
[1748475091067,0.1446,108050.0,108040.0,2.31895594]
[1748475091468,0.1446,108050.0,108040.0,2.77419594]
[1748475091765,0.0705,108050.0,108040.0,2.84144732]
[1748475091968,0.0705,108050.0,108040.0,2.91124051]
[1748475093666,0.0705,108050.0,108040.0,2.70337189]
[1748475093868,0.07038,108050.0,108040.0,2.82687476]
[1748475094056,0.0705,108050.0,108040.0,2.9113548]
[1748475096166,0.0705,108050.0,108040.0,1.4113548]
[1748475096761,0.0705,108050.0,108040.0,2.9113548]
[1748475097166,0.0705,108050.0,108040.0,2.91134068]
[1748475097369,0.0312,108050.0,108040.0,2.91134068]
[1748475097961,0.03108,108050.0,108040.0,2.91134068]
[1748475098163,0.0312,108050.0,108040.0,2.91134068]
[1748475098772,0.0312,108050.0,108040.0,3.07134068]
[1748475099174,0.0312,108050.0,108040.0,3.07234068]
[1748475099766,0.0312,108050.0,108040.0,2.52053069]
[1748475099965,0.0312,108050.0,108040.0,2.64403356]
[1748475100164,0.0312,108050.0,108040.0,2.52053069]
[1748475100362,0.0312,108050.0,108040.0,2.97429069]
[1748475100569,0.0312,108050.0,108040.0,3.09779356]
[1748475103877,0.0312,108050.0,108040.0,2.91660157]
[1748475104765,0.0312,108050.0,108040.0,2.7930987]
[1748475104961,0.0312,108050.0,108040.0,2.91660157]
[1748475105664,0.0312,108050.0,108040.0,2.7930987]
[1748475105880,0.0312,108050.0,108040.0,2.91660157]
[1748475106668,0.0312,108050.0,108040.0,2.93941157]
[1748475107365,0.0312,108050.0,108040.0,3.05088629]
[1748475107969,0.0312,108050.0,108040.0,3.12060356]
[1748475108480,1e-07,108050.0,108040.0,3.09364916]
[1748475108775,1e-07,108050.0,108040.0,3.07471993]
[1748475109176,0.0369,108060.0,108050.0,0.1850515]
[1748475109381,0.0369,108060.0,108050.0,1.09688241]
[1748475109681,0.0369,108060.0,108050.0,1.55104241]
[1748475109885,0.0369,108060.0,108050.0,3.05104241]
[1748475110882,0.0369,108060.0,108050.0,3.06516864]
[1748475111076,0.0369,108060.0,108050.0,2.94166577]
[1748475111280,0.0369,108060.0,108050.0,3.06516864]
[1748475111481,0.0369,108060.0,108050.0,2.94166577]
[1748475111680,0.01393369,108080.0,108070.0,0.1850173]
[1748475111866,0.17483656,108080.0,108070.0,0.23035786]
[1748475112072,0.34590297,108080.0,108070.0,0.23035786]
[1748475112377,0.27538287,108080.0,108070.0,0.23035786]
[1748475112873,0.31278287,108080.0,108070.0,0.23035786]
[1748475113176,0.35098287,108080.0,108070.0,0.23035786]
[1748475113391,0.22748,108080.0,108070.0,0.23035786]
[1748475113583,0.35098287,108080.0,108070.0,0.23036177]
[1748475113976,0.53598297,108080.0,108070.0,0.23036177]
[1748475114480,0.89678297,108080.0,108070.0,0.23036177]
[1748475114676,0.71178287,108080.0,108070.0,0.23036177]
[1748475114875,0.89678297,108080.0,108070.0,0.23036177]
[1748475115682,0.91041545,108080.0,108070.0,0.23036177]
[1748475117577,0.91041545,108080.0,108070.0,0.1877873]
[1748475117776,0.91041545,108080.0,108070.0,0.23037281]
[1748475119490,0.91041545,108080.0,108070.0,0.28713356]
[1748475120989,0.91041545,108080.0,108070.0,0.28714788]
[1748475122595,0.78691258,108080.0,108070.0,0.28714788]
[1748475122781,0.91041545,108080.0,108070.0,0.28714788]
[1748475124589,0.91041545,108080.0,108070.0,0.28729923]
[1748475125291,0.91041545,108080.0,108070.0,0.32449923]
[1748475125797,0.72541535,108080.0,108070.0,0.32449923]
[1748475126189,0.91041555,108080.0,108070.0,0.32449923]
[1748475126594,0.60191248,108080.0,108070.0,0.32449923]
[1748475126793,0.72541535,108080.0,108070.0,0.36339923]
[1748475127392,0.36461535,108080.0,108070.0,0.36339923]
[1748475127795,0.24111248,108080.0,108070.0,0.36339923]
[1748475127993,0.36461535,108080.0,108070.0,0.36339923]
[1748475128390,0.54961545,108080.0,108070.0,0.36339923]
[1748475128585,0.36461535,108080.0,108070.0,0.36339923]
[1748475128784,0.24111248,108080.0,108070.0,0.36340293]
[1748475128985,0.36461535,108080.0,108070.0,0.36340293]
[1748475129389,0.24111248,108080.0,108070.0,0.36340293]
[1748475129698,0.36461535,108080.0,108070.0,0.36340293]
[1748475129889,0.36443171,108080.0,108070.0,0.48672216]
[1748475130283,0.36443171,108080.0,108070.0,0.44396728]
[1748475130483,0.36455171,108080.0,108070.0,0.48196728]
[1748475130680,0.36455171,108080.0,108070.0,0.84276728]
[1748475131193,0.24123248,108080.0,108070.0,0.71944805]
[1748475131390,0.22748,108080.0,108070.0,0.8742815]
[1748475131596,0.1902,108080.0,108070.0,0.99760073]
[1748475131993,0.31351923,108080.0,108070.0,0.99760073]
[1748475132293,0.03752,108080.0,108070.0,1.39119998]
[1748475132481,0.00012,108080.0,108070.0,1.32150768]
[1748475132686,0.00012,108080.0,108070.0,1.43399728]
[1748475132886,0.31080869,108090.0,108080.0,0.1850001]
[1748475132887,0.18748946,108090.0,108080.0,0.1850001]
[1748475133087,0.31080869,108090.0,108080.0,2.06530139]
[1748475133686,0.31080869,108090.0,108080.0,1.94198216]
[1748475133891,0.27480869,108090.0,108080.0,2.06530139]
[1748475134196,0.16240869,108090.0,108080.0,2.42610139]
[1748475134385,0.16252869,108090.0,108080.0,2.42610139]
[1748475134586,0.03920946,108090.0,108080.0,2.42610139]
[1748475134794,0.03920946,108090.0,108080.0,2.30278216]
[1748475134981,0.03920946,108090.0,108080.0,2.42887139]
[1748475135182,0.16252869,108090.0,108080.0,2.42887139]
[1748475135389,0.16252869,108090.0,108080.0,1.94475216]
[1748475135687,0.16252869,108090.0,108080.0,2.06807139]
[1748475135907,0.20222869,108090.0,108080.0,2.06807139]
[1748475136196,0.20222869,108090.0,108080.0,1.85926292]
[1748475136197,0.38721169,108090.0,108080.0,1.85926292]
[1748475136397,0.20222869,108090.0,108080.0,1.98258215]
[1748475137003,0.26389246,108090.0,108080.0,2.06807139]
[1748475137194,0.38721169,108090.0,108080.0,1.98258215]
[1748475137401,0.20222869,108090.0,108080.0,2.06807139]
[1748475137991,0.16252869,108090.0,108080.0,1.94475216]
[1748475138194,0.34751169,108090.0,108080.0,1.98258215]
[1748475138503,0.16252869,108090.0,108080.0,1.98258215]
[1748475138800,0.03920946,108090.0,108080.0,1.98258215]
[1748475138995,0.16252869,108090.0,108080.0,1.98258215]
[1748475139501,0.00150946,108090.0,108080.0,2.80460021]
[1748475139799,0.00138946,108090.0,108080.0,2.81429362]
[1748475140000,0.30981169,108090.0,108080.0,2.14509636]
[1748475140205,0.34971169,108090.0,108080.0,2.07987153]
[1748475140392,0.78971169,108090.0,108080.0,1.96742181]
[1748475140696,0.78971169,108090.0,108080.0,2.42401404]
[1748475140904,0.78971169,108090.0,108080.0,2.33860273]
[1748475141104,0.78971169,108090.0,108080.0,1.88732489]
[1748475141801,1.47655092,108090.0,108080.0,0.10658439]
[1748475141989,1.51989355,108090.0,108080.0,0.02557]
[1748475144804,1.27321461,108090.0,108080.0,0.02557]
[1748475145004,1.4765914,108090.0,108080.0,0.02557]
[1748475145192,1.27321793,108090.0,108080.0,0.02557]
[1748475145396,1.51989687,108090.0,108080.0,0.02557]
[1748475146801,1.27321793,108090.0,108080.0,0.02557]
[1748475147005,1.51989687,108090.0,108080.0,0.02557]
[1748475148003,1.06877687,108090.0,108080.0,0.02557]
[1748475148203,1.52085687,108090.0,108080.0,0.02557]
[1748475149209,1.52086066,108090.0,108080.0,0.02557]
[1748475150308,1.06878066,108090.0,108080.0,0.02557]
[1748475150509,1.52030066,108090.0,108080.0,0.02557]
[1748475152799,1.5189112,108090.0,108080.0,0.02557]
[1748475153307,1.51891495,108090.0,108080.0,0.02557]
[1748475153708,0.1850019,108080.0,108070.0,0.04274232]
[1748475153899,0.1850019,108080.0,108060.0,0.04288118]
[1748475153900,0.185019,108070.0,108060.0,0.04288118]
[1748475154105,1.53245685,108070.0,108060.0,0.00013886]
[1748475154304,0.1850361,108060.0,108050.0,0.04274232]
[1748475154506,0.1850533,108050.0,108040.0,0.36755202]
[1748475154817,0.1850533,108050.0,108040.0,0.09968262]
[1748475154818,1.31223277,108050.0,108040.0,0.09968262]
[1748475155108,1.31223277,108050.0,108030.0,0.30919691]
[1748475155109,0.1850704,108040.0,108030.0,0.31062712]
[1748475155410,0.78650987,108040.0,108030.0,0.31062712]
[1748475156009,0.78650987,108040.0,108030.0,0.2678848]
[1748475156200,0.78650987,108040.0,108030.0,0.2688848]
[1748475156709,0.78650987,108040.0,108030.0,0.2708848]
[1748475157106,0.78650987,108040.0,108030.0,0.0858]
[1748475157407,0.6631704,108040.0,108030.0,0.0858]
[1748475157607,0.78650987,108040.0,108030.0,0.2708875]
[1748475158508,0.78650987,108040.0,108030.0,0.0858]
[1748475158808,0.6631704,108040.0,108030.0,0.2708858]
[1748475159201,0.78650987,108040.0,108030.0,0.2708858]
[1748475159412,0.80027528,108040.0,108030.0,0.0858]
[1748475159606,0.80027528,108040.0,108030.0,0.2708866]
[1748475160302,0.80027528,108040.0,108030.0,0.0858]
[1748475160809,0.80027528,108040.0,108030.0,0.0444]
[1748475161111,0.92361475,108040.0,108030.0,0.003]
[1748475161311,0.1850865,108030.0,108020.0,0.00290886]
[1748475161504,1.43468544,108030.0,108020.0,0.00290886]
[1748475161812,1.52725744,108030.0,108020.0,0.00290886]
[1748475162709,1.52725744,108030.0,108020.0,0.00590886]
[1748475162908,1.52725744,108030.0,108020.0,0.00790886]
[1748475163108,1.2805785,108030.0,108020.0,0.00790886]
[1748475163309,1.52725744,108030.0,108020.0,0.00790886]
[1748475165104,1.2805785,108030.0,108020.0,0.00790886]
[1748475165306,1.40391797,108030.0,108020.0,0.00790886]
[1748475165508,0.7359265,108030.0,108020.0,0.19301256]
[1748475165707,0.15104,108030.0,108020.0,0.27201256]
[1748475165902,0.00012,108030.0,108020.0,0.93407203]
[1748475166117,0.00012,108030.0,108020.0,2.43407203]
[1748475166317,0.1850866,108030.0,108020.0,2.26445786]
[1748475166619,0.30854607,108030.0,108020.0,2.26445786]
[1748475166819,0.34774607,108030.0,108020.0,2.26445786]
[1748475167010,0.2244066,108030.0,108020.0,2.26445786]
[1748475167212,0.2244066,108030.0,108020.0,2.28445786]
[1748475167410,0.2244066,108030.0,108020.0,2.26445786]
[1748475168518,0.5852066,108030.0,108020.0,1.90365786]
[1748475169019,0.70854607,108030.0,108020.0,1.90365786]
[1748475169213,0.70854607,108030.0,108020.0,1.85738476]
[1748475169415,0.83188554,108030.0,108020.0,0.12600886]
[1748475169719,0.74774607,108030.0,108020.0,0.12600886]
[1748475169915,0.74774607,108030.0,108020.0,1.81111236]
[1748475170114,0.5852066,108030.0,108020.0,1.81111236]
[1748475170421,0.70854607,108030.0,108020.0,1.81111236]
[1748475172817,1.16102607,108030.0,108020.0,1.81111236]
[1748475174221,1.19942607,108030.0,108020.0,1.81111236]
[1748475174811,1.19942607,108030.0,108020.0,0.08690886]
[1748475175012,1.32276554,108030.0,108020.0,0.04880886]
[1748475175208,1.32276554,108030.0,108020.0,0.00790886]
[1748475175413,0.1851036,108020.0,108010.0,0.0398]
[1748475175614,0.1851207,108010.0,108000.0,0.0824]
[1748475175816,1.19962017,108010.0,108000.0,0.3082379]
[1748475176120,1.19962017,108010.0,108000.0,0.1231]
[1748475176321,1.19962017,108010.0,108000.0,0.082]
[1748475177113,1.19962017,108010.0,108000.0,0.0413]
[1748475177714,1.20262017,108010.0,108000.0,0.0413]
[1748475177923,1.20462017,108010.0,108000.0,0.0413]
[1748475178812,1.20462017,108010.0,108000.0,0.0802]
[1748475179218,1.20462017,108010.0,108000.0,0.0413]
[1748475180724,0.1851378,108000.0,107990.0,0.04180886]
[1748475180946,1.02285674,108000.0,107990.0,0.09524136]
[1748475181111,1.02285674,108000.0,107990.0,0.08280886]
[1748475181423,1.02285674,108000.0,107990.0,0.05638087]
[1748475181626,1.02285674,108000.0,107990.0,0.01538087]
[1748475181921,1.02285674,108000.0,107990.0,0.00290886]
[1748475182127,0.83771894,108000.0,107980.0,0.121]
[1748475182319,1.20337277,107990.0,107980.0,0.09247038]
[1748475182927,1.20337277,107990.0,107980.0,0.01257038]
[1748475183114,0.1851703,107980.0,107970.0,0.0793]
[1748475183320,0.86438977,107980.0,107970.0,0.07943886]
[1748475183516,0.90328977,107980.0,107970.0,0.07943886]
[1748475184229,0.90328977,107980.0,107970.0,0.08143886]
[1748475184428,0.90328977,107980.0,107970.0,0.08243886]
[1748475184925,0.917478,107980.0,107970.0,0.26762616]
[1748475185123,0.0405,107980.0,107970.0,0.26762616]
[1748475185322,0.11368,107990.0,107980.0,0.1851702]
[1748475185323,0.298833,107990.0,107980.0,0.1851702]
[1748475185528,0.42217247,107990.0,107980.0,0.2999702]
[1748475185833,0.46267247,107990.0,107980.0,0.2999702]
[1748475186517,0.46279247,107990.0,107980.0,0.2999702]
[1748475186733,0.46279247,107990.0,107980.0,0.3009702]
[1748475187526,0.34911247,107990.0,107980.0,0.3009702]
[1748475187728,0.46279247,107990.0,107980.0,0.3009702]
[1748475187924,0.339453,107990.0,107980.0,0.3009702]
[1748475188532,0.00012,107990.0,107980.0,0.79685051]
[1748475188721,0.00012,107990.0,107980.0,0.83945171]
[1748475188926,0.65975626,108000.0,107990.0,0.185154]
[1748475188927,0.70604036,108000.0,107990.0,0.185154]
[1748475189227,0.23156036,108000.0,107990.0,0.264454]
[1748475189626,0.27186036,108000.0,107990.0,0.284454]
[1748475189821,0.22557626,108000.0,107990.0,0.284454]
[1748475190022,0.22557626,108000.0,107990.0,0.264454]
[1748475190529,0.22557626,108000.0,107990.0,1.764454]
[1748475190931,0.22657626,108000.0,107990.0,1.764454]
[1748475191134,0.00113886,108000.0,107990.0,2.125254]
[1748475191530,0.00125886,108000.0,107990.0,2.1678552]
[1748475192129,0.00125886,108000.0,107990.0,2.16786196]
[1748475192624,0.00125886,108000.0,107990.0,2.17786196]
[1748475193128,0.32147567,108000.0,107990.0,2.17786196]
[1748475193329,0.32147567,108000.0,107990.0,2.16786196]
[1748475193629,0.71967567,108000.0,107990.0,1.80706166]
[1748475193830,0.71967567,108000.0,107990.0,1.7644537]
[1748475194733,0.71967567,108000.0,107990.0,1.5793]
[1748475194734,0.75817567,108000.0,107990.0,1.5793]
[1748475194939,1.21261567,108000.0,107990.0,0.0793]
[1748475195325,0.1851536,107990.0,107980.0,0.0397]
[1748475195525,0.55255391,107990.0,107980.0,0.0805]
[1748475195736,0.55255391,107990.0,107980.0,0.2656707]
[1748475196346,0.91335391,107990.0,107980.0,0.2656707]
[1748475196639,0.91335391,107990.0,107980.0,0.2666707]
[1748475198745,0.7782736,107990.0,107980.0,0.2666707]
[1748475199049,0.91335391,107990.0,107980.0,0.2666707]
[1748475199234,0.91335391,107990.0,107980.0,0.0815]
[1748475199634,0.91335391,107990.0,107980.0,0.09400479]
[1748475200945,0.91335391,107990.0,107980.0,0.05480479]
[1748475201143,0.91335391,107990.0,107980.0,0.001]
[1748475201345,0.91335391,107990.0,107980.0,0.01357697]
[1748475201640,0.91335391,107990.0,107980.0,0.09338492]
[1748475202039,0.91335391,107990.0,107980.0,0.0808]
[1748475202343,0.91335391,107990.0,107980.0,0.09336981]
[1748475202829,0.91335391,107990.0,107980.0,0.01358602]
[1748475203028,0.91335391,107990.0,107980.0,0.01358746]
[1748475203246,0.91335391,107990.0,107980.0,0.001]
[1748475203539,0.7782736,107990.0,107980.0,0.001]
[1748475203843,0.91335391,107990.0,107980.0,0.0773]
[1748475204040,0.91335391,107990.0,107980.0,0.08985585]
[1748475204244,0.91335391,107990.0,107980.0,0.27502675]
[1748475204437,0.91335391,107990.0,107980.0,0.2624709]
[1748475204636,0.83535391,107990.0,107980.0,0.27499267]
[1748475204835,0.7002736,107990.0,107980.0,0.30523953]
[1748475205133,0.7003936,107990.0,107980.0,0.30523953]
[1748475205333,1.10480031,107990.0,107980.0,0.30523953]
[1748475205538,0.92915471,107990.0,107980.0,0.30523953]
[1748475205939,0.7939544,107990.0,107980.0,0.30523953]
[1748475206138,0.7940744,107990.0,107980.0,0.30523953]
[1748475206547,0.3395944,107990.0,107980.0,0.30523953]
[1748475206847,0.3395943,107990.0,107980.0,0.30523953]
[1748475207432,0.00012,107990.0,107980.0,1.17805983]
[1748475207634,0.00012,107990.0,107980.0,1.22070251]
[1748475207839,0.43147196,108000.0,107990.0,0.1851544]
[1748475208038,0.91576236,108000.0,107990.0,0.34662892]
[1748475208947,0.95306236,108000.0,107990.0,1.84662892]
[1748475209147,0.95406236,108000.0,107990.0,1.84662892]
[1748475209735,0.51555886,108000.0,107990.0,1.84662892]
[1748475209934,0.51555886,108000.0,107990.0,1.90356922]
[1748475210138,0.70081606,108000.0,107990.0,1.90356922]
[1748475210331,0.34001606,108000.0,107990.0,1.90356922]
[1748475210545,0.34001606,108000.0,107990.0,2.26436922]
[1748475210740,0.34001606,108000.0,107990.0,1.90356922]
[1748475210741,0.46350646,108000.0,107990.0,1.90356922]
[1748475211053,0.46350646,108000.0,107990.0,1.92356922]
[1748475211240,0.46350646,108000.0,107990.0,1.90356922]
[1748475211441,0.82430646,108000.0,107990.0,1.90356922]
[1748475211643,0.82430646,108000.0,107990.0,0.40356922]
[1748475212342,0.82430646,108000.0,107990.0,0.40353748]
[1748475212936,0.86180646,108000.0,107990.0,0.40353748]
[1748475213342,0.74848646,108000.0,107990.0,0.21838308]
[1748475213636,0.74848646,108000.0,107990.0,0.04274278]
[1748475213838,0.90967686,108000.0,107990.0,0.04274278]
[1748475214048,0.1851544,107990.0,107980.0,0.17538308]
[1748475214246,0.8589648,107990.0,107980.0,0.17538308]
[1748475214552,1.3132448,107990.0,107980.0,0.30361438]
[1748475214851,1.3132448,107990.0,107980.0,0.36055468]
[1748475215052,1.3132448,107990.0,107980.0,0.30361438]
[1748475215247,1.3132448,107990.0,107980.0,0.36055468]
[1748475215440,1.3132448,107990.0,107980.0,0.30461438]
[1748475216455,1.3132448,107990.0,107980.0,0.30465136]
[1748475217055,1.3132448,107990.0,107980.0,0.36159166]
[1748475217251,0.0387,107990.0,107980.0,0.36159166]
[1748475217440,0.69709756,108000.0,107990.0,0.1851543]
[1748475217642,0.51315886,108000.0,107990.0,0.30692447]
[1748475217945,0.51315886,108000.0,107990.0,0.40743477]
[1748475218147,0.69841606,108000.0,107990.0,0.40743477]
[1748475218446,0.33761606,108000.0,107990.0,0.76823477]
[1748475218844,0.15347886,108000.0,107990.0,0.76823477]
[1748475219051,0.33861606,108000.0,107990.0,0.76823477]
[1748475219961,0.33861606,108000.0,107990.0,2.26823477]
[1748475220547,0.33861606,108000.0,107990.0,2.2254646]
[1748475220753,0.33861606,108000.0,107990.0,2.26822076]
[1748475221152,0.33861606,108000.0,107990.0,2.28822076]
[1748475221351,0.33849606,108000.0,107990.0,2.28822076]
[1748475221651,0.33861606,108000.0,107990.0,2.28822076]
[1748475221853,0.00125886,108000.0,107990.0,2.46592865]
[1748475222054,0.00125886,108000.0,107990.0,2.57115458]
[1748475222259,0.00125886,108000.0,107990.0,2.48574327]
[1748475222550,0.00125886,108000.0,107990.0,2.64235237]
[1748475223141,0.00125886,108000.0,107990.0,2.59927901]
[1748475223545,0.00125886,108000.0,107990.0,2.50668301]
[1748475223753,0.00125886,108000.0,107990.0,2.54975019]
[1748475224558,0.00125886,108000.0,107990.0,2.48017996]
[1748475224851,0.00125886,108000.0,107990.0,2.4801657]
[1748475225051,0.00125886,108000.0,107990.0,2.79970878]
[1748475225253,0.00125886,108000.0,107990.0,1.1894173]
[1748475225654,0.00125886,108000.0,107990.0,2.70322529]
[1748475225858,6e-08,108000.0,107990.0,2.95322529]
[1748475226052,9e-08,108010.0,108000.0,0.1851372]
[1748475226358,9e-08,108010.0,108000.0,1.78667056]
[1748475226657,0.00012009,108010.0,108000.0,2.12925856]
[1748475226859,0.00013886,108020.0,108010.0,0.1851201]
[1748475227061,0.00013886,108020.0,108010.0,0.78629038]
[1748475227464,0.00013886,108020.0,108010.0,2.28629038]
[1748475227754,0.00013886,108020.0,108010.0,2.73829038]
[1748475228257,0.00113886,108020.0,108010.0,2.73829038]
[1748475230049,0.00113886,108020.0,108010.0,2.60323764]
[1748475230248,0.18624186,108020.0,108010.0,2.63979379]
[1748475230457,0.22664186,108020.0,108010.0,2.10271625]
[1748475230769,0.1851201,108010.0,108000.0,0.42352907]
[1748475230952,0.79977284,108010.0,108000.0,0.36673292]
[1748475231354,0.79977284,108010.0,108000.0,1.86673292]
[1748475231956,0.79977284,108010.0,108000.0,1.86773292]
[1748475232252,0.79977284,108010.0,108000.0,1.87773292]
[1748475232451,0.6647201,108010.0,108000.0,1.87773292]
[1748475232964,0.1198,108010.0,108000.0,2.23853292]
[1748475233260,0.1198,108010.0,108000.0,2.29532907]
[1748475233470,0.3049201,108010.0,108000.0,2.29532907]
[1748475234363,0.3049201,108010.0,108000.0,2.28532907]
[1748475234666,0.3049201,108010.0,108000.0,2.28432907]
[1748475234962,0.1198,108010.0,108000.0,2.28432907]
[1748475235167,0.3049202,108010.0,108000.0,2.28432907]
[1748475240158,0.3049202,108010.0,108000.0,0.42352907]
[1748475240469,1.36485294,108010.0,108000.0,0.18527596]
[1748475240660,1.36485294,108010.0,108000.0,0.18527506]
[1748475240867,1.00405294,108010.0,108000.0,0.18527506]
[1748475241165,1.36485294,108010.0,108000.0,0.18527506]
[1748475241969,1.36485294,108010.0,108000.0,0.00013886]
[1748475242267,1.36485294,108010.0,108000.0,0.18527536]
[1748475242468,1.36485294,108010.0,108000.0,0.00013886]
[1748475242765,1.36485294,108010.0,108000.0,0.18527596]
[1748475242973,1.36485294,108010.0,108000.0,0.00013886]
[1748475243472,1.36485294,108010.0,108000.0,0.18527596]
[1748475243658,1.36485294,108010.0,108000.0,0.00013886]
[1748475245159,1.54314005,108010.0,108000.0,0.00013886]
[1748475245355,0.1851543,107990.0,107980.0,0.04270494]
[1748475245556,0.1851715,107980.0,107970.0,0.41628039]
[1748475245770,0.79672424,107980.0,107970.0,1.91628039]
[1748475245971,0.79672424,107980.0,107970.0,1.92877672]
[1748475246565,0.79672424,107980.0,107970.0,1.91628039]
[1748475246775,0.79672424,107980.0,107970.0,1.95718039]
[1748475247161,0.43592424,107980.0,107970.0,1.96967677]
[1748475247367,0.43592424,107980.0,107970.0,1.95995039]
[1748475247871,0.43592424,107980.0,107970.0,1.96395039]
[1748475248071,0.43592424,107980.0,107970.0,1.96698109]
[1748475248377,0.79672424,107980.0,107970.0,0.06499374]
[1748475248566,0.79672424,107980.0,107970.0,0.0192581]
[1748475248762,0.79672424,107980.0,107970.0,0.0212581]
[1748475249669,0.79672424,107980.0,107970.0,0.01953694]
[1748475249867,0.79672424,107980.0,107970.0,0.0195367]
[1748475250070,0.79672424,107980.0,107970.0,0.01954796]
[1748475250377,0.79672424,107980.0,107970.0,0.01954806]
[1748475250678,0.84672424,107980.0,107970.0,0.01954806]
[1748475251263,0.84672424,107980.0,107970.0,0.00677]
[1748475251672,0.84672424,107980.0,107970.0,0.01962671]
[1748475251868,0.84672424,107980.0,107970.0,0.01963764]
[1748475252675,0.84672424,107980.0,107970.0,0.01964459]
[1748475252976,0.84672424,107980.0,107970.0,0.01964578]
[1748475253479,0.84672424,107980.0,107970.0,0.01963818]
[1748475253688,0.84672424,107980.0,107970.0,0.20482528]
[1748475253689,0.54053803,107980.0,107970.0,0.20482528]
[1748475253864,0.54053803,107980.0,107970.0,0.86553802]
[1748475253865,0.01415803,107980.0,107970.0,0.86553802]
[1748475254068,0.00013886,107990.0,107980.0,0.1851699]
[1748475254367,0.00013886,107990.0,107980.0,0.92003647]
[1748475254565,0.00025886,107990.0,107980.0,0.92003647]
[1748475254762,0.00025886,107990.0,107980.0,0.96274233]
[1748475254961,0.00013886,107990.0,107980.0,1.22086077]
[1748475255172,0.00025886,107990.0,107980.0,1.22086077]
[1748475255375,0.04105886,107990.0,107980.0,0.76106077]
[1748475256179,0.04105886,107990.0,107980.0,0.71846605]
[1748475256378,0.04105886,107990.0,107980.0,0.76206651]
[1748475256573,0.04105886,107990.0,107980.0,2.26206651]
[1748475256574,0.22621166,107990.0,107980.0,2.26206651]
[1748475256977,0.00025886,107990.0,107980.0,2.26206651]
[1748475257176,0.18541166,107990.0,107980.0,2.26206651]
[1748475259184,0.18541166,107990.0,107980.0,2.30478359]
[1748475259478,0.18541166,107990.0,107980.0,2.21946605]
[1748475259687,0.18541166,107990.0,107980.0,2.30478359]
[1748475261484,0.22551166,107990.0,107980.0,1.85866605]
[1748475261668,0.22551166,107990.0,107980.0,2.26213495]
[1748475262476,0.22551166,107990.0,107980.0,2.21946605]
[1748475262775,0.7213644,107990.0,107980.0,1.90134433]
[1748475262979,0.7213644,107990.0,107980.0,1.84454818]
[1748475263180,0.3994644,107990.0,107980.0,1.84454818]
[1748475263577,0.7602644,107990.0,107980.0,1.8018699]
[1748475264382,0.7602644,107990.0,107980.0,0.3018699]
[1748475264885,0.7602644,107990.0,107980.0,1.8018699]
[1748475265388,0.8721444,107990.0,107980.0,1.8018699]
[1748475265569,0.22551166,107990.0,107980.0,1.8018699]
[1748475265775,0.22551166,107990.0,107980.0,2.20539483]
[1748475266283,0.04035886,107990.0,107980.0,2.20539483]
[1748475267068,0.04035886,107990.0,107980.0,1.84459483]
[1748475267283,0.04035886,107990.0,107980.0,2.20539483]
[1748475267485,0.00025886,107990.0,107980.0,2.20539483]
[1748475267682,0.18541176,107990.0,107980.0,2.20539483]
[1748475267882,0.18529176,107990.0,107980.0,2.20539483]
[1748475268284,0.18529176,107990.0,107980.0,2.26219098]
[1748475268589,0.22601176,107990.0,107980.0,2.26219098]
[1748475269374,0.3610645,107990.0,107980.0,1.90139098]
[1748475269776,0.7218645,107990.0,107980.0,1.90416098]
[1748475269976,0.7218645,107990.0,107980.0,1.84736483]
[1748475270378,0.58681176,107990.0,107980.0,1.84736483]
[1748475270578,0.7218645,107990.0,107980.0,1.84736483]
[1748475272379,0.3610645,107990.0,107980.0,1.84736483]
[1748475272587,0.7218645,107990.0,107980.0,1.84736483]
[1748475273387,0.7218645,107990.0,107980.0,1.84745406]
[1748475273885,0.3610645,107990.0,107980.0,1.90425021]
[1748475274089,0.22601176,107990.0,107980.0,1.90425021]
[1748475274677,0.22601176,107990.0,107980.0,2.26505021]
[1748475275182,0.00025886,107990.0,107980.0,1.90425021]
[1748475275380,0.00013886,107990.0,107980.0,2.51226525]
[1748475275681,0.00025886,107990.0,107980.0,0.9554691]
[1748475275890,0.00013886,107990.0,107980.0,0.9554691]
[1748475276084,0.00025886,107990.0,107980.0,2.4554691]
[1748475276387,0.00025886,107990.0,107980.0,2.32041636]
[1748475276687,0.00025886,107990.0,107980.0,2.34041636]
[1748475277389,0.00025886,107990.0,107980.0,2.36892052]
[1748475279295,0.00025886,107990.0,107980.0,2.50397326]